bitfinex-derivatives/quotes_ETHF0:USTF0_20251024
["timestamp","ask_amount","ask_price","bid_price","bid_amount"]
[1761275490105,1.85014,3891.4,3891.3,1.1938]
[1761275492702,1.38984,3891.4,3891.3,1.6731]
[1761275493296,1.38984,3891.4,3891.3,2.5817015]
[1761275496709,0.92954,3891.4,3891.3,2.5817015]
[1761275497107,0.46244,3891.4,3891.3,2.5817015]
[1761275498203,0.4603,3891.4,3891.3,3.44969686]
[1761275498405,0.92528341,3891.6,3891.5,1.9317]
[1761275498603,0.92528341,3891.6,3891.5,11.0627]
[1761275499519,1.38558341,3891.6,3891.5,11.0627]
[1761275502414,1.38558341,3891.6,3891.5,11.75021596]
[1761275502815,0.00257341,3891.6,3891.5,11.97904275]
[1761275503016,0.00257341,3891.6,3891.5,11.0627]
[1761275503519,0.00257341,3891.6,3891.5,11.52512]
[1761275507424,0.00257341,3891.6,3891.5,12.21195402]
[1761275507621,0.00257341,3891.6,3891.5,11.70797955]
[1761275507816,0.00257341,3891.6,3891.5,11.52512]
[1761275508621,0.00257341,3891.6,3891.5,11.0627]
[1761275509318,0.00257341,3891.6,3891.5,11.74903593]
[1761275511222,0.00257341,3891.6,3891.5,11.0627]
[1761275524334,0.00257341,3891.6,3891.5,11.97809052]
[1761275531135,0.00257341,3891.6,3891.5,0.9814]
[1761275531136,0.97307341,3891.6,3891.5,0.9814]
[1761275531436,0.97307341,3891.6,3891.2,0.68646418]
[1761275531437,1.43294,3891.3,3891.2,0.65]
[1761275531740,1.43294,3891.3,3891.2,7.966]
[1761275532234,1.10944,3891.3,3891.2,8.4233]
[1761275532534,1.10944,3891.3,3891.2,8.8459]
[1761275532725,1.10944,3891.3,3891.2,1.5299]
[1761275533032,1.10944,3891.3,3891.2,10.6339]
[1761275533735,1.43294,3891.3,3891.2,10.6339]
[1761275534337,1.43294,3891.3,3891.2,9.104]
[1761275534536,1.43294,3891.3,3891.2,9.754]
[1761275536136,1.43294,3891.3,3891.2,0.65]
[1761275537940,1.43294,3891.3,3891.2,1.1073]
[1761275538446,1.43294,3891.3,3891.2,0.65]
[1761275539435,1.43294,3891.3,3891.2,1.1073]
[1761275539635,1.43294,3891.3,3891.2,1.5299]
[1761275539636,1.10944,3891.3,3891.2,1.5299]
[1761275540840,1.10944,3891.3,3890.4,1.05326067]
[1761275540841,0.647,3890.6,3890.5,1.81281947]
[1761275541025,1.40491791,3890.6,3890.5,1.81281947]
[1761275541432,0.647,3890.6,3890.5,1.81281947]
[1761275547336,1.77858,3890.1,3890.0,1.0613]
[1761275548344,1.77858,3890.1,3890.0,1.06414289]
[1761275549041,1.21458,3890.1,3890.0,1.06414289]
[1761275549238,1.79018,3890.1,3890.0,1.06414289]
[1761275549436,1.79018,3890.1,3890.0,1.63234289]
[1761275550646,1.79018,3890.1,3890.0,1.35154289]
[1761275551138,1.79018,3890.1,3890.0,1.58664289]
[1761275552541,1.21458,3890.1,3890.0,1.58664289]
[1761275552741,1.80598,3890.1,3890.0,1.58664289]
[1761275557343,1.80598,3890.1,3890.0,0.00284289]
[1761275557649,2.56389791,3890.1,3890.0,0.00284289]
[1761275559145,2.56389791,3890.1,3890.0,0.97324289]
[1761275559940,2.56389791,3890.1,3890.0,0.60224289]
[1761275560143,2.7563379,3890.1,3890.0,0.60224289]
[1761275560342,2.7563379,3890.1,3890.0,0.00284289]
[1761275561756,1.81552,3889.8,3889.7,0.5994]
[1761275561943,1.81554,3889.6,3889.5,0.2409]
[1761275562142,1.81554,3889.6,3889.5,0.6119]
[1761275562553,1.81554,3889.6,3889.5,1.2113]
[1761275562848,1.81554,3889.6,3889.5,1.21429667]
[1761275563653,1.81554,3889.6,3889.5,1.60649667]
[1761275571847,1.22414,3889.6,3889.5,1.60649667]
[1761275574051,1.81554,3889.6,3889.5,1.60649667]
[1761275574255,2.00837227,3889.6,3889.5,1.60649667]
[1761275574655,1.41697227,3889.6,3889.5,1.60649667]
[1761275575953,1.41700326,3889.6,3889.5,1.60649667]
[1761275576557,2.00840326,3889.6,3889.5,1.60649667]
[1761275576958,1.41700326,3889.6,3889.5,1.60649667]
[1761275579061,1.02230326,3889.6,3889.5,1.60649667]
[1761275580449,1.36290326,3889.6,3889.5,1.60649667]
[1761275580656,1.87980326,3889.6,3889.5,1.60649667]
[1761275581258,1.36290326,3889.6,3889.5,1.60649667]
[1761275583253,1.02230326,3889.6,3889.5,1.60649667]
[1761275583458,0.65550326,3889.6,3889.5,1.60649667]
[1761275583655,1.37130326,3889.6,3889.5,1.57019667]
[1761275583859,1.03070326,3889.6,3889.5,1.57019667]
[1761275587465,1.37130326,3889.6,3889.5,1.57019667]
[1761275588866,1.88820326,3889.6,3889.5,1.57019667]
[1761275589164,1.88820326,3889.6,3889.5,0.96739667]
[1761275589368,1.88820326,3889.6,3889.5,0.60239667]
[1761275589869,1.88820326,3889.6,3889.5,0.96739667]
[1761275591267,1.37130326,3889.6,3889.5,0.64226419]
[1761275591563,1.17856,3888.6,3888.5,0.7269]
[1761275591763,1.37142326,3888.6,3888.5,0.7269]
[1761275591963,1.88832326,3888.6,3888.5,0.7269]
[1761275592370,1.89036292,3888.6,3888.5,0.72873418]
[1761275593268,1.89036292,3888.6,3888.5,0.92153418]
[1761275593664,1.89036292,3888.6,3888.5,1.28343418]
[1761275598773,1.89036292,3888.6,3888.5,0.00183418]
[1761275598974,1.89036292,3888.6,3888.5,0.92153418]
[1761275599871,1.89036292,3888.6,3888.5,0.00183418]
[1761275600473,1.89036292,3888.6,3888.5,0.36683418]
[1761275600668,1.91369784,3888.6,3888.5,0.92153418]
[1761275603174,1.91369784,3888.6,3888.5,0.36683418]
[1761275603577,1.91369784,3888.6,3888.5,0.92153418]
[1761275604478,1.91369784,3888.6,3888.5,0.00183418]
[1761275607070,1.69558,3887.6,3887.5,1.2816]
[1761275607276,0.3752,3887.2,3887.1,0.5547]
[1761275607473,0.8787,3887.2,3887.1,1.2709]
[1761275608077,0.8787,3887.2,3887.1,1.2739088]
[1761275608464,1.1994,3887.2,3887.1,1.2739088]
[1761275609171,1.1994,3887.2,3887.1,0.3680088]
[1761275609571,1.1994,3887.2,3886.6,0.5138]
[1761275609572,1.2191,3886.7,3886.6,0.5138]
[1761275609772,1.2191,3886.7,3886.6,0.866]
[1761275609966,1.2191,3886.7,3886.6,1.1907]
[1761275610576,1.2191,3886.7,3886.6,1.192702]
[1761275621486,0.99024,3887.2,3886.9,0.6769]
[1761275621786,1.68204,3887.2,3887.1,1.1907]
[1761275621989,1.8992786,3887.2,3887.1,1.1907]
[1761275622487,1.4298,3887.0,3886.9,0.866]
[1761275622994,1.4298,3887.0,3886.9,1.1907]
[1761275623288,1.64709349,3887.0,3886.9,1.1907]
[1761275624692,1.43639349,3887.0,3886.9,1.1907]
[1761275627893,1.64709349,3887.0,3886.9,1.1907]
[1761275628689,0.46296,3886.9,3886.6,0.002002]
[1761275628890,1.43639349,3886.8,3886.7,0.5138]
[1761275629091,1.43639349,3886.8,3886.6,0.002002]
[1761275629092,1.68209,3886.7,3886.6,0.002002]
[1761275629290,1.89960069,3886.7,3886.6,0.002002]
[1761275630694,1.89960069,3886.7,3886.6,0.354202]
[1761275631294,1.89960069,3886.7,3886.6,0.868002]
[1761275636497,1.89960069,3886.7,3886.6,1.192702]
[1761275636698,1.43661069,3886.7,3886.6,1.192702]
[1761275649719,0.56061069,3886.7,3886.6,1.192702]
[1761275650416,1.03041069,3886.7,3886.6,1.192702]
[1761275650608,0.21751069,3886.7,3886.6,1.192702]
[1761275658418,0.92155313,3887.1,3887.0,0.46295]
[1761275658621,0.21833184,3887.1,3887.0,2.62703354]
[1761275660924,0.6344,3887.5,3887.4,0.6646]
[1761275661129,0.6344,3887.5,3887.4,1.1096]
[1761275661530,1.1042,3887.5,3887.4,1.1096]
[1761275668029,1.2649,3887.5,3887.4,0.3466]
[1761275668229,0.9717,3886.8,3886.7,0.7245]
[1761275668430,1.66189679,3886.8,3886.7,1.0023]
[1761275668828,0.9717,3886.8,3886.7,1.0023]
[1761275670529,1.18724336,3886.8,3886.7,1.0023]
[1761275672632,0.91044336,3886.8,3886.7,1.69249679]
[1761275673633,0.6949,3886.8,3886.7,1.69249679]
[1761275674231,0.4197,3887.2,3887.1,0.4368]
[1761275674432,0.90737272,3887.2,3887.1,1.47934]
[1761275678845,0.90738235,3887.2,3887.1,1.47934]
[1761275679346,0.90738235,3887.2,3887.1,1.0164]
[1761275679536,1.18038235,3887.2,3887.1,1.0164]
[1761275679737,0.76068235,3887.2,3886.9,1.18696]
[1761275679942,1.1263,3887.0,3886.9,1.18696]
[1761275680144,0.9648,3887.0,3886.9,1.47936]
[1761275681145,1.17822377,3887.0,3886.9,1.47936]
[1761275682239,1.17822377,3887.0,3886.7,0.4368]
[1761275682240,0.4197,3886.9,3886.7,0.4368]
[1761275682436,0.9648,3886.8,3886.7,1.47938]
[1761275682943,0.9648,3886.8,3886.7,2.16957679]
[1761275683145,0.6918,3886.8,3886.7,2.16957679]
[1761275696065,0.46292,3887.3,3887.0,0.46294]
[1761275696268,1.00802,3887.3,3887.2,1.0164]
[1761275696569,1.2215661,3887.3,3887.2,1.0164]
[1761275696771,1.6412661,3887.3,3887.2,1.0164]
[1761275699569,1.1783461,3887.3,3887.2,1.0164]
[1761275701370,0.5314,3887.1,3887.0,1.13224]
[1761275701572,1.1242461,3887.1,3887.0,1.37894]
[1761275701773,1.1242461,3887.1,3887.0,0.916]
[1761275702273,1.1242461,3887.1,3887.0,1.60619679]
[1761275704166,1.1242461,3887.1,3887.0,0.2762]
[1761275704576,1.1242461,3887.1,3887.0,0.6693]
[1761275705270,0.3793,3887.0,3886.9,9.104]
[1761275705474,0.7494461,3887.0,3886.9,9.104]
[1761275705668,0.7494461,3887.0,3886.7,1.58469052]
[1761275705876,0.9107,3886.8,3886.7,0.2762]
[1761275706076,1.1242461,3886.8,3886.7,9.3782]
[1761275707471,1.1242461,3886.8,3886.7,9.7713]
[1761275707673,1.1242461,3886.8,3886.7,0.6693]
[1761275707871,1.1242461,3886.8,3886.7,9.7713]
[1761275712280,1.1242461,3886.8,3886.7,9.7703]
[1761275712581,1.1242461,3886.8,3886.7,10.017]
[1761275714281,1.1242461,3886.8,3886.7,0.916]
[1761275714482,1.1242461,3886.8,3886.7,10.017]
[1761275715877,1.1242461,3886.8,3886.6,0.002002]
[1761275715878,0.9107,3886.7,3886.6,0.002002]
[1761275716079,1.1242461,3886.7,3886.6,0.002002]
[1761275716282,2.04852647,3886.7,3886.6,0.002002]
[1761275716987,2.51151647,3886.7,3886.6,0.002002]
[1761275718087,1.5872361,3886.7,3886.6,0.002002]
[1761275719888,1.5872361,3886.7,3886.6,0.671302]
[1761275720491,1.5872361,3886.7,3886.6,0.278202]
[1761275721284,1.5872361,3886.7,3886.6,0.002002]
[1761275731896,2.51151647,3886.7,3886.6,0.002002]
[1761275735411,1.5872361,3886.7,3886.6,0.002002]
[1761275735609,1.58913542,3886.7,3886.6,0.002002]
[1761275735805,2.5138669,3886.7,3886.6,0.002002]
[1761275737307,1.58913542,3886.7,3886.6,0.002002]
[1761275742106,2.97555598,3886.7,3886.6,0.002002]
[1761275744212,1.58913542,3886.7,3886.6,0.002002]
[1761275744710,1.58913542,3886.7,3886.6,0.242502]
[1761275744904,1.58913542,3886.7,3886.6,0.591502]
[1761275745105,2.97555598,3886.7,3886.6,0.242502]
[1761275746310,2.97526676,3886.7,3886.6,0.242502]
[1761275747507,2.97526676,3886.7,3886.6,0.591502]
[1761275748702,2.97526676,3886.7,3886.6,0.242502]
[1761275750717,2.97526676,3886.7,3886.6,0.591502]
[1761275752119,2.97526676,3886.7,3886.6,0.002002]
[1761275758729,2.51227676,3886.7,3886.6,0.002002]
[1761275759829,2.51227676,3886.7,3886.6,0.230702]
[1761275760029,2.51227676,3886.7,3886.6,0.580802]
[1761275760227,2.51227676,3886.7,3886.6,0.230702]
[1761275760533,2.51227676,3886.7,3886.6,0.002002]
[1761275761033,2.51233678,3886.7,3886.6,0.002002]
[1761275761233,1.12591622,3886.7,3886.6,0.002002]
[1761275761935,2.51518415,3886.7,3886.6,0.002002]
[1761275762838,1.89238415,3886.7,3886.6,1.269802]
[1761275763033,1.42923689,3886.7,3886.6,1.269802]
[1761275763332,0.84301622,3886.7,3886.6,1.269802]
[1761275765841,1.0677182,3886.7,3886.6,0.806802]
[1761275766145,1.5307082,3886.7,3886.6,0.806802]
[1761275766345,1.0677182,3886.7,3886.6,0.806802]
[1761275767645,1.99383887,3886.7,3886.6,0.002002]
[1761275768045,1.0677182,3886.7,3886.6,0.002002]
[1761275768535,1.0677182,3886.7,3886.6,0.580802]
[1761275768737,1.0677182,3886.7,3886.6,0.806802]
[1761275771840,1.0677182,3886.7,3886.6,0.002002]
[1761275773453,1.0677182,3886.7,3886.6,0.230702]
[1761275773649,1.0677182,3886.7,3886.6,0.580802]
[1761275777352,1.0677182,3886.7,3886.6,0.806802]
[1761275777753,1.99339323,3886.7,3886.6,0.806802]
[1761275782757,2.68400498,3886.7,3886.6,0.806802]
[1761275785458,1.75832995,3886.7,3886.6,0.806802]
[1761275785653,1.75832995,3886.7,3886.6,0.002002]
[1761275786353,0.7934,3885.9,3885.8,0.5788]
[1761275786547,1.0085182,3885.9,3885.8,0.5788]
[1761275786753,0.2151182,3885.9,3885.8,0.8048]
[1761275787454,0.2151182,3885.9,3885.8,0.80737062]
[1761275791256,0.2151182,3885.9,3885.8,0.80737062]
[1761275792153,0.2275,3886.1,3886.0,0.8009]
[1761275792458,0.43866,3886.1,3886.0,0.8009]
[1761275792659,0.76856,3886.1,3886.0,0.8009]
[1761275794862,0.99836,3886.1,3886.0,0.8009]
[1761275796364,0.99836,3886.1,3886.0,0.2323]
[1761275797058,0.4635,3886.0,3885.8,0.35427062]
[1761275797369,0.99836,3885.9,3885.8,0.80347062]
[1761275801365,0.76856,3885.9,3885.8,0.80347062]
[1761275801569,0.21116,3885.9,3885.8,0.80347062]
[1761275801866,0.76899461,3886.1,3886.0,0.9331]
[1761275802368,0.99879461,3886.1,3886.0,0.8009]
[1761275802962,0.7872,3886.1,3886.0,0.8009]
[1761275803261,0.9208,3886.0,3885.9,0.4492]
[1761275803462,1.13239378,3886.0,3885.9,0.4492]
[1761275803664,1.13239378,3886.0,3885.9,0.8009]
[1761275803968,0.99879378,3886.0,3885.9,0.8009]
[1761275804164,0.3299,3886.3,3886.0,0.4839]
[1761275804464,0.5574,3886.3,3886.2,1.26395]
[1761275804663,0.76899742,3886.3,3886.2,1.26395]
[1761275806567,0.99879742,3886.3,3886.2,1.26395]
[1761275806964,0.99879742,3886.3,3886.2,0.8009]
[1761275813663,0.99879742,3886.3,3886.2,9.8889]
[1761275824075,1.92461626,3886.3,3885.8,0.34217062]
[1761275824271,0.7716,3885.9,3885.8,0.57597062]
[1761275824471,0.98319742,3885.9,3885.8,5.53937062]
[1761275826980,1.44627742,3885.9,3885.8,5.53937062]
[1761275827474,1.44627742,3885.9,3885.8,4.97437062]
[1761275827865,1.44627742,3885.9,3885.8,5.31397062]
[1761275828676,1.44627742,3885.9,3885.8,4.97437062]
[1761275829375,1.44627742,3885.9,3885.8,0.57597062]
[1761275829570,1.44627742,3885.9,3885.8,0.80137062]
[1761275829771,0.98319742,3885.9,3885.8,0.80137062]
[1761275829971,1.67380917,3885.9,3885.8,0.00257062]
[1761275831273,1.67380917,3885.9,3885.8,0.57597062]
[1761275831587,1.67380917,3885.9,3885.8,0.80137062]
[1761275832480,1.67380917,3885.9,3885.8,0.23637062]
[1761275834084,1.67380917,3885.9,3885.8,0.57597062]
[1761275836278,1.67380917,3885.9,3885.8,0.23637062]
[1761275837197,1.67380917,3885.9,3885.8,0.00257062]
[1761275844702,1.85378597,3885.9,3885.8,0.00257062]
[1761275846195,1.85378597,3885.9,3885.3,0.91539052]
[1761275846196,1.23477,3885.2,3885.0,4.475]
[1761275846498,0.9094,3885.0,3884.9,0.5734]
[1761275846699,0.9094,3885.0,3884.9,9.6584]
[1761275847102,0.91127459,3885.0,3884.9,9.66058354]
[1761275847602,0.91127459,3885.0,3884.9,9.32098354]
[1761275847901,0.91127459,3885.0,3884.9,0.58718354]
[1761275848093,0.91127459,3885.0,3884.9,9.89308354]
[1761275849293,0.91127459,3885.0,3884.9,0.80808354]
[1761275849494,0.91127459,3885.0,3884.9,9.89308354]
[1761275850103,0.91127459,3885.0,3884.9,0.80808354]
[1761275853609,0.91127459,3885.0,3884.9,0.00218354]
[1761275854905,0.91127459,3885.0,3884.9,0.21678354]
[1761275855102,0.91127459,3885.0,3884.9,0.55698354]
[1761275855803,0.91127459,3885.0,3884.9,0.78378354]
[1761275856106,0.77347459,3885.0,3884.9,0.78378354]
[1761275858904,0.00187459,3885.0,3884.9,0.78378354]
[1761275859109,0.55707459,3885.0,3884.9,0.78378354]
[1761275861314,0.91187459,3885.0,3884.9,0.21678354]
[1761275861612,0.91187459,3885.0,3884.9,0.78378354]
[1761275862206,0.77547459,3885.0,3884.9,7.50778354]
[1761275866217,0.55707459,3885.0,3884.9,7.50778354]
[1761275866416,0.00187459,3885.0,3884.9,7.50778354]
[1761275875432,1.48004853,3885.6,3885.5,0.9183]
[1761275875621,1.48004853,3885.6,3885.5,10.0003]
[1761275875622,1.69433396,3885.6,3885.5,10.0003]
[1761275876329,1.696157,3885.6,3885.5,10.0003]
[1761275880033,1.140957,3885.6,3885.5,10.0003]
[1761275881234,0.21610847,3885.6,3885.5,10.0003]
[1761275882532,0.00182304,3885.6,3885.5,10.0003]
[1761275890933,0.331,3886.3,3886.2,0.457]
[1761275891134,0.54487237,3886.3,3886.2,9.863]
[1761275891933,0.21583543,3886.3,3886.2,9.863]
[1761275894539,0.21583543,3886.3,3886.2,10.06235164]
[1761275894940,0.00196306,3886.3,3886.2,10.06235164]
[1761275897938,1.25584853,3887.2,3886.2,9.73535164]
[1761275898132,0.331,3887.4,3887.3,0.327]
[1761275898332,0.77201979,3887.4,3887.3,9.862]
[1761275898947,0.77443722,3887.4,3887.3,9.862]
[1761275899148,0.21603722,3887.4,3887.3,9.862]
[1761275900336,0.00241743,3887.4,3887.3,9.862]
[1761275901838,0.00241743,3887.4,3887.3,0.784]
[1761275902039,0.00241743,3887.4,3887.3,9.86]
[1761275905145,0.00241743,3887.4,3887.3,0.784]
[1761275905349,0.00241743,3887.4,3887.3,9.859]
[1761275906748,0.00241743,3887.4,3887.3,10.54910251]
[1761275907342,0.57381743,3887.4,3887.3,9.858]
[1761275908338,0.57381743,3887.4,3887.3,0.784]
[1761275908543,0.57381743,3887.4,3887.3,9.858]
[1761275913354,0.3244,3888.4,3888.2,0.46281]
[1761275913554,0.3474,3889.0,3888.7,0.3332]
[1761275913759,1.03932,3889.0,3888.9,0.7844]
[1761275913958,1.25237218,3889.0,3888.9,0.7844]
[1761275914150,1.57677218,3889.0,3888.9,0.7844]
[1761275914349,1.57677218,3889.0,3888.9,0.78720644]
[1761275914350,1.578805,3889.0,3888.9,0.78720644]
[1761275914956,0.983085,3889.0,3888.9,0.78720644]
[1761275915357,0.77003282,3889.0,3888.9,0.78720644]
[1761275916360,0.77003282,3889.0,3888.9,0.98603786]
[1761275916553,0.00203282,3889.0,3888.9,2.13887037]
[1761275918456,0.00203282,3889.0,3888.9,1.94003895]
[1761275920563,0.00203282,3889.0,3888.9,2.14345738]
[1761275922655,1.28750251,3890.0,3889.7,0.3332]
[1761275922656,0.3244,3889.9,3889.7,0.3332]
[1761275922863,0.5388,3889.9,3889.8,8.0564]
[1761275923773,0.54166106,3889.9,3889.8,8.0564]
[1761275924367,0.75458575,3889.9,3889.8,8.0564]
[1761275924566,1.67388826,3889.9,3889.8,0.7844]
[1761275924764,1.67388826,3889.9,3889.8,9.305]
[1761275925068,1.67388826,3889.9,3889.8,9.6382]
[1761275926370,0.98378575,3889.9,3889.8,9.8534]
[1761275933566,0.98378575,3889.9,3889.8,9.8514]
[1761275933770,0.75458575,3889.9,3889.8,9.8514]
[1761275935275,0.43018575,3889.9,3889.8,9.8514]
[1761275935474,0.21578575,3889.9,3889.8,9.8514]
[1761275936968,0.00286106,3889.9,3889.8,9.8514]
[1761275942078,1.49486357,3889.9,3889.8,0.7844]
[1761275942280,0.2343,3889.3,3889.2,0.5832]
[1761275942472,0.4627,3889.1,3889.0,0.5832]
[1761275942782,1.47814187,3889.1,3889.0,9.2986]
[1761275943379,1.47814187,3889.1,3889.0,9.6472]
[1761275945676,0.21354187,3889.1,3889.0,10.47051]
[1761275945883,0.2343,3889.6,3889.5,0.8153]
[1761275946084,0.67606436,3889.6,3889.5,9.8793]
[1761275946383,1.01566436,3889.6,3889.5,9.8793]
[1761275947277,0.5676,3889.2,3889.1,0.5832]
[1761275947478,1.70576687,3889.2,3889.1,9.6472]
[1761275947984,2.16846687,3889.2,3889.1,9.6472]
[1761275948176,2.16846687,3889.2,3889.1,9.8793]
[1761275951376,1.47836436,3889.2,3889.1,9.8793]
[1761275952086,1.47836436,3889.2,3889.1,0.8153]
[1761275952285,1.47836436,3889.2,3889.1,9.8793]
[1761275952580,2.16846687,3889.2,3889.1,0.8153]
[1761275952987,2.16845687,3889.2,3889.1,9.064]
[1761275953187,2.16845687,3889.2,3889.1,9.2986]
[1761275953487,2.16845687,3889.2,3889.1,9.6472]
[1761275953992,1.47835436,3889.2,3889.1,9.8793]
[1761275963986,1.47835436,3889.2,3889.1,0.8153]
[1761275964187,1.47835436,3889.2,3888.9,0.00280644]
[1761275964188,1.39341,3889.0,3888.9,0.00280644]
[1761275964390,2.08357251,3888.5,3888.4,0.2346]
[1761275964693,2.29733687,3888.5,3888.4,2.3116]
[1761275964893,2.29733687,3888.5,3888.4,2.6602]
[1761275965394,2.16853687,3888.5,3888.4,2.8923]
[1761275965582,2.16853687,3888.5,3888.4,2.89453216]
[1761275968892,1.47843436,3888.5,3888.4,2.89453216]
[1761275969402,1.60873436,3888.5,3888.4,2.07923216]
[1761275970505,1.60873436,3888.5,3888.4,0.54133216]
[1761275972699,0.67653436,3888.5,3888.4,0.77013216]
[1761275972892,0.21376436,3888.5,3888.4,0.77013216]
[1761275973093,0.21376436,3888.5,3888.4,1.23293216]
[1761275976503,0.21376436,3888.5,3888.4,0.77013216]
[1761275976694,0.78596436,3888.5,3888.4,0.77013216]
[1761275979007,0.21376436,3888.5,3888.4,0.77013216]
[1761275980098,0.21376436,3888.5,3888.4,1.63945675]
[1761275980301,0.92279533,3889.0,3888.8,0.46274]
[1761275980499,0.21559847,3888.9,3888.8,1.23064]
[1761275981196,1.95767533,3889.5,3889.4,0.2288]
[1761275981398,2.17326838,3889.5,3889.4,0.7679]
[1761275981596,2.39736838,3889.5,3889.4,0.7679]
[1761275982404,2.52766838,3889.5,3889.4,0.7679]
[1761275983607,1.71058838,3889.5,3889.4,0.7679]
[1761275984208,0.78779305,3889.5,3889.4,0.7679]
[1761275984608,1.71058838,3889.5,3889.4,0.7679]
[1761275985808,0.21559305,3889.5,3889.4,0.7679]
[1761275987316,0.78779305,3889.5,3889.4,0.7679]
[1761275989921,0.21559305,3889.5,3889.4,0.7679]
[1761275995122,0.78779305,3889.5,3889.4,0.7679]
[1761275995315,1.01189305,3889.5,3889.4,0.7679]
[1761276001036,1.59916305,3889.5,3889.4,4.35]
[1761276001435,2.52195838,3889.5,3889.4,4.35]
[1761276001633,1.13838838,3889.5,3889.4,5.99072459]
[1761276001849,0.21559305,3889.5,3889.4,5.99072459]
[1761276003340,0.21559305,3889.5,3889.4,6.19021512]
[1761276003941,0.21559305,3889.5,3889.4,1.84021512]
[1761276004243,0.21559305,3889.5,3889.4,10.90221512]
[1761276009539,0.8888592,3889.9,3889.7,0.2188]
[1761276009729,0.00286106,3889.9,3889.8,10.29503]
[1761276016046,0.32896106,3889.9,3889.8,11.16435459]
[1761276016440,0.00286106,3889.9,3889.8,11.16435459]
[1761276016848,0.55776106,3889.9,3889.8,9.8314]
[1761276017151,0.78886106,3889.9,3889.8,9.8314]
[1761276019349,0.78886106,3889.9,3889.8,0.7714]
[1761276019548,0.78886106,3889.9,3889.8,9.8304]
[1761276020449,0.55776106,3889.9,3889.8,9.8304]
[1761276022854,0.55776106,3889.9,3889.8,0.7714]
[1761276023056,0.55776106,3889.9,3889.8,9.8304]
[1761276023255,0.55776106,3889.9,3889.8,10.69972459]
[1761276024159,0.00286106,3889.9,3889.8,10.69972459]
[1761276024861,0.00286106,3889.9,3889.8,1.64072459]
[1761276025158,0.00286106,3889.9,3889.8,10.69972459]
[1761276026546,1.85122827,3891.0,3889.9,0.3384]
[1761276026753,2.31112827,3891.0,3890.9,0.7714]
[1761276026955,1.13575064,3891.0,3890.9,0.7714]
[1761276027164,1.46515064,3891.0,3890.9,0.7714]
[1761276027658,1.46742589,3891.0,3890.9,0.7714]
[1761276029461,0.77382589,3891.0,3890.9,0.7714]
[1761276029656,0.21562589,3891.0,3890.9,0.7714]
[1761276029962,1.03712589,3891.0,3890.9,0.7714]
[1761276031458,0.80182589,3891.0,3890.9,0.7714]
[1761276033465,1.17522589,3891.0,3890.9,0.7714]
[1761276034565,1.17522589,3891.0,3890.9,0.2188]
[1761276034960,0.2356,3890.6,3890.5,0.5439]
[1761276035158,1.03485064,3890.6,3890.5,3.9949]
[1761276035463,1.03494866,3890.6,3890.5,3.6656]
[1761276036457,1.03494866,3890.6,3890.5,9.6019]
[1761276036657,1.03494866,3890.6,3890.5,9.2726]
[1761276036868,1.03494866,3890.6,3890.5,9.058]
[1761276037162,0.93345,3890.5,3890.4,0.7603]
[1761276037360,1.28499866,3890.5,3890.4,0.7603]
[1761276037558,1.28499866,3890.5,3890.4,4.9523]
[1761276037761,1.63559866,3890.5,3890.4,4.623]
[1761276038456,1.63559866,3890.5,3890.4,8.2176]
[1761276038657,1.63559866,3890.5,3890.4,9.2716]
[1761276040260,1.63559866,3890.5,3890.4,9.6009]
[1761276040460,1.63566934,3890.5,3890.4,9.6009]
[1761276040967,1.63566934,3890.5,3890.4,9.2716]
[1761276041766,1.63566934,3890.5,3890.4,0.2146]
[1761276041967,1.63566934,3890.5,3890.4,9.2716]
[1761276042265,1.63566934,3890.5,3890.4,9.6009]
[1761276044867,1.63566934,3890.5,3890.4,9.8173]
[1761276045965,1.63566934,3890.5,3890.4,0.7603]
[1761276046164,1.63566934,3890.5,3890.4,6.7643]
[1761276047172,1.63566575,3890.5,3890.4,6.7643]
[1761276048870,3.02439402,3890.5,3890.4,6.7643]
[1761276050473,3.02439402,3890.5,3890.4,0.7603]
[1761276055376,2.56184402,3890.5,3890.4,9.8173]
[1761276056481,2.5618602,3890.5,3890.4,9.8173]
[1761276058982,1.17313193,3890.5,3890.4,9.8173]
[1761276061283,1.17315584,3890.5,3890.4,9.8173]
[1761276061977,1.03505584,3890.5,3890.4,9.8173]
[1761276062681,0.21355584,3890.5,3890.4,10.5751302]
[1761276062982,1.01615584,3890.5,3890.4,9.8173]
[1761276063379,1.15545584,3890.5,3890.4,0.2146]
[1761276063576,0.8026,3890.3,3890.2,0.3402]
[1761276063777,1.01615584,3890.3,3890.2,5.0263]
[1761276063983,0.21355584,3890.3,3890.2,5.0263]
[1761276064186,0.21355584,3890.4,3890.2,4.6861]
[1761276064387,1.60045256,3890.4,3890.2,4.6861]
[1761276064586,0.21355584,3890.3,3890.2,4.6861]
[1761276064788,1.01615584,3890.3,3890.2,5.0263]
[1761276064979,1.01615584,3890.3,3890.2,0.7823]
[1761276065288,1.01615584,3890.3,3890.2,9.8393]
[1761276065788,0.78195584,3890.3,3890.2,9.8393]
[1761276067280,0.21355584,3890.3,3890.2,9.8393]
[1761276068283,0.78195584,3890.3,3890.2,9.8393]
[1761276069292,0.78195584,3890.3,3890.2,0.7823]
[1761276069487,0.78195584,3890.3,3890.2,9.8393]
[1761276071390,1.01615584,3890.3,3890.2,0.7823]
[1761276071595,2.40305256,3890.3,3890.2,9.8393]
[1761276073598,1.82425256,3890.3,3890.2,9.8393]
[1761276073992,2.16885256,3890.3,3890.2,9.8393]
[1761276074897,2.16885256,3890.3,3890.2,0.7823]
[1761276075096,2.16885256,3890.3,3890.2,9.8383]
[1761276075499,0.78195584,3890.3,3890.2,9.8383]
[1761276079202,0.21355584,3890.3,3890.2,9.8383]
[1761276079500,1.61069672,3890.4,3890.3,0.5536]
[1761276079703,2.16949993,3890.4,3890.3,0.7823]
[1761276082799,0.21420321,3890.4,3890.3,1.5401302]
[1761276083001,0.78260321,3890.4,3890.3,0.7823]
[1761276083698,1.01680321,3890.4,3890.3,0.7823]
[1761276083904,0.8026,3890.1,3890.0,0.7823]
[1761276084104,1.94191417,3890.1,3890.0,9.8383]
[1761276084298,1.77463341,3890.1,3890.0,9.8383]
[1761276088300,1.77463341,3890.1,3890.0,9.2694]
[1761276088707,1.77463341,3890.1,3890.0,9.6096]
[1761276089205,1.01680321,3890.1,3890.0,9.8383]